fUSD/lending_fUSD_20250818
["ID","MTS","AMOUNT","RATE_DAILY","PERIOD"]
[380019461,1755479441948,-500.0,0.00011729,2]
[380019462,1755479441958,-500.0,0.00011729,2]
[380019463,1755479441967,-500.0,0.00011729,2]
[380019464,1755479441976,-500.0,0.00011729,2]
[380019465,1755479441985,-500.0,0.00011729,2]
[380019466,1755479441994,-500.0,0.00011729,2]
[380019467,1755479442003,-500.0,0.00011729,2]
[380019468,1755479442012,-500.0,0.00011729,2]
[380019469,1755479442021,-151.0,0.00011729,2]
[380019470,1755479442031,-500.0,0.00011729,2]
[380019471,1755479442039,-1000.0,0.00011729,2]
[380019472,1755479442048,-151.0,0.00011729,2]
[380019473,1755479442057,-500.0,0.00011729,2]
[380019474,1755479442067,-1000.0,0.00011729,2]
[380019475,1755479442076,-151.0,0.00011729,2]
[380019476,1755479442085,-500.0,0.00011729,2]
[380019477,1755479442094,-1000.0,0.00011729,2]
[380019478,1755479442103,-151.0,0.00011729,2]
[380019479,1755479442113,-500.0,0.00011729,2]
[380019480,1755479442122,-1000.0,0.00011729,2]
[380019481,1755479442132,-500.0,0.00011729,2]
[380019482,1755479442141,-151.0,0.00011729,2]
[380019483,1755479442150,-500.0,0.00011729,2]
[380019484,1755479442159,-1000.0,0.00011729,2]
[380019485,1755479442168,-500.0,0.00011729,2]
[380019486,1755479442177,-500.0,0.00011729,2]
[380019487,1755479442186,-151.0,0.00011729,2]
[380019488,1755479442195,-500.0,0.00011729,2]
[380019489,1755479442204,-1000.0,0.00011729,2]
[380019490,1755479442213,-500.0,0.00011729,2]
[380019491,1755479442223,-151.0,0.00011729,2]
[380019492,1755479442232,-500.0,0.00011729,2]
[380019493,1755479442241,-1000.0,0.00011729,2]
[380019494,1755479442250,-500.0,0.00011729,2]
[380019495,1755479442259,-151.0,0.00011729,2]
[380019496,1755479442269,-500.0,0.00011729,2]
[380019497,1755479442278,-1000.0,0.00011729,2]
[380019498,1755479442287,-500.0,0.00011729,2]
[380019499,1755479442296,-151.0,0.00011729,2]
[380019500,1755479442304,-500.0,0.00011729,2]
[380019501,1755479442314,-1000.0,0.00011729,2]
[380019502,1755479442323,-151.0,0.00011729,2]
[380019503,1755479442332,-500.0,0.00011729,2]
[380019504,1755479442342,-1000.0,0.00011729,2]
[380019505,1755479442351,-151.0,0.00011729,2]
[380019506,1755479442361,-500.0,0.00011729,2]
[380019507,1755479442370,-1000.0,0.00011729,2]
[380019508,1755479442379,-151.0,0.00011729,2]
[380019509,1755479442389,-500.0,0.00011729,2]
[380019510,1755479442398,-151.0,0.00011729,2]
[380019511,1755479442407,-500.0,0.00011729,2]
[380019512,1755479442416,-1000.0,0.00011729,2]
[380019513,1755479442425,-500.0,0.00011729,2]
[380019514,1755479442435,-1000.0,0.00011729,2]
[380019515,1755479442444,-151.0,0.00011729,2]
[380019516,1755479442452,-1000.0,0.00011729,2]
[380019518,1755479442462,-151.0,0.00011729,2]
[380019520,1755479442471,-3000.0,0.00011729,2]
[380019521,1755479442480,-3000.0,0.00011729,2]
[380019522,1755479442490,-3000.0,0.00011729,2]
[380019523,1755479442500,-3000.0,0.00011729,2]
[380019524,1755479442509,-3000.0,0.00011729,2]
[380019525,1755479442518,-3000.0,0.00011729,2]
[380019526,1755479442527,-3000.0,0.00011729,2]
[380019527,1755479442536,-3000.0,0.00011729,2]
[380019528,1755479442545,-3000.0,0.00011729,2]
[380019529,1755479442554,-3000.0,0.00011729,2]
[380019530,1755479442563,-3000.0,0.00011729,2]
[380019531,1755479442572,-2396.07189848,0.00011729,2]
[380019532,1755479442581,-150.0,0.00011751,2]
[380019533,1755479442591,-150.0,0.00011784,2]
[380019534,1755479442600,-8624.77072982,0.00011784,2]
[380019535,1755479442609,-758.0,0.00011815,2]
[380019536,1755479442618,-357.12671575,0.00011815,2]
[380019537,1755479442627,-1686.0,0.00011815,2]
[380019538,1755479442637,-500.0,0.00011815,2]
[380019539,1755479442646,-445.0,0.00011815,2]
[380019540,1755479442655,-157.95073534,0.00011815,2]
[380019541,1755479442664,-500.0,0.00011815,2]
[380019542,1755479442673,-200.0,0.00011815,2]
[380019543,1755479442682,-1000.0,0.00011815,2]
[380019544,1755479442692,-575.0,0.00011815,2]
[380019545,1755479442702,-500.0,0.00011815,2]
[380019546,1755479442711,-251.15977988,0.00011815,2]
[380019547,1755479442720,-500.0,0.00011815,2]
[380019548,1755479442730,-500.0,0.00011815,2]
[380019549,1755479442741,-500.0,0.00011815,2]
[380019550,1755479442751,-1183.40238827,0.0001182,2]
[380019551,1755479442761,-500.0,0.00011822,2]
[380019552,1755479442774,-500.0,0.00011822,2]
[380019553,1755479442784,-500.0,0.00011822,2]
[380019554,1755479442793,-500.0,0.00011822,2]
[380019555,1755479442803,-391.82223546,0.00011822,2]
[380019556,1755479442813,-500.0,0.00011822,2]
[380019557,1755479442822,-346.97,0.00011829,2]
[380019558,1755479442831,-408.15,0.00011829,2]
[380019559,1755479442840,-331.88,0.00011829,2]
[380019560,1755479442851,-150.0,0.00011834,2]
[380019561,1755479442860,-8943.88724682,0.00011839,2]
[380019562,1755479442870,-4892.75722843,0.00011844,2]
[380019563,1755479442879,-150.0,0.00011867,2]
[380019564,1755479442888,-150.0,0.00011869,2]
[380019565,1755479442897,-9274.81107495,0.00011894,2]
[380019566,1755479442906,-150.0,0.00011899,2]
[380019568,1755479442916,-150.0,0.00011908,2]
[380019570,1755479442925,-150.0,0.00011936,2]
[380019571,1755479442934,-150.0,0.00011941,2]
[380019572,1755479442944,-255.0,0.00011944,2]
[380019573,1755479442954,-150.0,0.00011948,2]
[380019574,1755479442963,-9617.97908473,0.00011949,2]
[380019575,1755479442973,-154.0,0.00011955,2]
[380019576,1755479442982,-150.0,0.00011977,2]
[380019577,1755479442991,-200.0,0.00012,2]
[380019578,1755479443000,-9973.84431086,0.00012004,2]
[380019579,1755479443010,-150.0,0.00012012,2]
[380019580,1755479443019,-150.0,0.00012034,2]
[380019581,1755479443029,-150.0,0.00012039,2]
[380019582,1755479443039,-150.0,0.00012043,2]
[380019583,1755479443049,-203.28140911,0.00012048,2]
[380019584,1755479443058,-1863.85,0.00012055,2]
[380019585,1755479443068,-10342.87655036,0.00012059,2]
[380019586,1755479443077,-714.41770928,0.00012068,2]
[380019588,1755479443087,-957.2841587,0.00012068,2]
[380019590,1755479443096,-1000.0,0.00012068,2]
[380019592,1755479443105,-1500.0,0.00012068,2]
[380019593,1755479443115,-992.14671886,0.00012068,2]
[380019594,1755479443124,-1500.0,0.00012068,2]
[380019595,1755479443134,-1500.0,0.00012068,2]
[380019596,1755479443143,-1500.0,0.00012068,2]
[380019597,1755479443152,-1500.0,0.00012068,2]
[380019598,1755479443161,-621.87886955,0.00012068,2]
[380019599,1755479443171,-1000.0,0.00012068,2]
[380019600,1755479443180,-1500.0,0.00012068,2]
[380019601,1755479443189,-1500.0,0.00012068,2]
[380019602,1755479443198,-1000.0,0.00012068,2]
[380019603,1755479443207,-1500.0,0.00012068,2]
[380019604,1755479443216,-1500.0,0.00012068,2]
[380019605,1755479443227,-1500.0,0.00012068,2]
[380019606,1755479443236,-1115.4090871,0.0001207,2]
[380019607,1755479443245,-758.0,0.00012089,2]
[380019608,1755479443255,-1686.0,0.00012089,2]
[380019609,1755479443263,-561.70565824,0.00012089,2]
[380019610,1755479443272,-445.0,0.00012089,2]
[380019611,1755479443282,-500.0,0.00012089,2]
[380019612,1755479443291,-1000.0,0.00012089,2]
[380019613,1755479443301,-575.0,0.00012089,2]
[380019614,1755479443310,-500.0,0.00012089,2]
[380019615,1755479443320,-624.13650689,0.00012089,2]
[380019616,1755479443329,-500.0,0.00012089,2]
[380019617,1755479443338,-500.0,0.00012089,2]
[380019618,1755479443347,-994.77,0.00012095,2]
[380019619,1755479443357,-500.0,0.00012096,2]
[380019620,1755479443367,-500.0,0.00012096,2]
[380019621,1755479443377,-500.0,0.00012096,2]
[380019622,1755479443386,-500.0,0.00012096,2]
[380019623,1755479443396,-500.0,0.00012096,2]
[380019624,1755479443406,-150.0,0.00012098,2]
[380019625,1755479443415,-4462.83154951,0.00012098,2]
[380019626,1755479443424,-155.0,0.00012099,2]
[380019627,1755479443434,-809.60369322,0.00012108,2]
[380019628,1755479443444,-10725.56298273,0.00012114,2]
[380019629,1755479443453,-150.0,0.00012122,2]
[380019630,1755479443463,-150.0,0.00012123,2]
[380019631,1755479443473,-1255.0,0.00012141,2]
[380019632,1755479443482,-2029.0,0.00012141,2]
[380019633,1755479443492,-990.658,0.00012141,2]
[380019634,1755479443503,-3371.0,0.00012141,2]
[380019635,1755479443512,-1297.0,0.00012141,2]
[380019636,1755479443522,-599.0,0.00012141,2]
[380019637,1755479443531,-572.335,0.00012141,2]
[380019638,1755479443811,-894.0,0.00012141,2]
[380019639,1755479443823,-1172.0,0.00012141,2]
[380019640,1755479443832,-6090.0,0.00012141,2]
[380019641,1755479443842,-21492.0,0.00012141,2]
[380019642,1755479443851,-2235.0,0.00012141,2]
[380019643,1755479443862,-4151.0,0.00012141,2]
[380019644,1755479443871,-150.0,0.00012157,2]
[380019645,1755479443881,-596.55317786,0.00012163,2]
[380019646,1755479443890,-11122.40881309,0.00012169,2]
[380019647,1755479443899,-150.0,0.00012177,2]
[380019648,1755479443909,-150.0,0.00012194,2]
[380019649,1755479443918,-150.0,0.00012198,2]
[380019650,1755479443927,-151.0,0.00012199,2]
[380019651,1755479443937,-160.181318,0.00012199,2]
[380019652,1755479443946,-160.181318,0.00012199,2]
[380019653,1755479443955,-151.0,0.00012199,2]
[380019654,1755479443965,-151.0,0.00012199,2]
[380019655,1755479443974,-151.0,0.00012199,2]
[380019656,1755479443983,-151.0,0.00012199,2]
[380019657,1755479443992,-266.97794,0.00012199,2]
[380019658,1755479444002,-266.97794,0.00012199,2]
[380019659,1755479444011,-151.0,0.00012199,2]
[380019660,1755479444020,-151.0,0.00012199,2]
[380019661,1755479444029,-151.0,0.00012199,2]
[380019662,1755479444039,-151.0,0.00012199,2]
[380019663,1755479444048,-150.0,0.0001221,2]
[380019664,1755479444057,-11533.93793917,0.00012224,2]
[380019665,1755479444067,-250.0,0.00012229,2]
[380019666,1755479444076,-250.0,0.00012237,2]
[380019667,1755479444085,-204.0,0.00012237,2]
[380019668,1755479444095,-200.0,0.00012237,2]
[380019669,1755479444104,-251.0,0.00012237,2]
[380019670,1755479444115,-195.496,0.00012237,2]
[380019671,1755479444124,-178.245,0.00012237,2]
[380019672,1755479444134,-203.002,0.00012237,2]
[380019673,1755479444144,-201.232,0.00012237,2]
[380019674,1755479444154,-250.0,0.00012237,2]
[380019675,1755479444163,-296.318,0.00012237,2]
[380019676,1755479444173,-250.0,0.00012237,2]
[380019677,1755479444182,-245.888,0.00012237,2]
[380019678,1755479444192,-186.279,0.00012237,2]
[380019679,1755479444202,-159.889,0.00012237,2]
[380019680,1755479444211,-204.895,0.00012237,2]
[380019681,1755479444221,-206.966,0.00012237,2]
[380019682,1755479444231,-250.0,0.00012237,2]
[380019683,1755479444241,-153.0,0.00012237,2]
[380019684,1755479444251,-205.623,0.00012237,2]
[380019685,1755479444261,-151.0,0.00012237,2]
[380019686,1755479444271,-151.0,0.00012237,2]
[380019687,1755479444281,-151.0,0.00012237,2]
[380019688,1755479444291,-151.0,0.00012237,2]
[380019689,1755479444302,-192.311841,0.00012237,2]
[380019690,1755479444312,-192.311841,0.00012237,2]
[380019691,1755479444321,-151.0,0.00012237,2]
[380019692,1755479444332,-151.0,0.00012237,2]
[380019693,1755479444342,-151.0,0.00012237,2]
[380019694,1755479444352,-151.0,0.00012237,2]
[380019695,1755479444362,-187.048197,0.00012237,2]
[380019696,1755479444371,-151.0,0.00012237,2]
[380019697,1755479444381,-151.0,0.00012237,2]
[380019698,1755479444391,-151.0,0.00012237,2]
[380019699,1755479444400,-151.0,0.00012237,2]
[380019700,1755479444410,-151.0,0.00012237,2]
[380019701,1755479444419,-151.0,0.00012237,2]
[380019702,1755479444428,-186.101228,0.00012237,2]
[380019703,1755479444441,-150.0,0.00012266,2]
[380019704,1755479444450,-151.0,0.00012277,2]
[380019705,1755479444460,-151.0,0.00012277,2]
[380019706,1755479444470,-150.0,0.00012279,2]
[380019707,1755479444479,-11960.69364292,0.00012279,2]
[380019708,1755479444488,-410927.16,0.000123,2]
[380019709,1755479444497,-17009.78,0.000123,2]
[380019710,1755479444507,-197.97375,0.000123,2]
[380019711,1755479444516,-151.0,0.000123,2]
[380019712,1755479444525,-197.97375,0.000123,2]
[380019713,1755479444534,-153.565228,0.000123,2]
[380019714,1755479444544,-151.180582,0.000123,2]
[380019715,1755479444554,-283.60233,0.000123,2]
[380019716,1755479444563,-283.60233,0.000123,2]
[380019717,1755479444572,-151.0,0.000123,2]
[380019718,1755479444582,-202.892164,0.000123,2]
[380019719,1755479444591,-202.892164,0.000123,2]
[380019720,1755479444601,-151.0,0.000123,2]
[380019721,1755479444610,-151.0,0.000123,2]
[380019722,1755479444619,-303.37247,0.000123,2]
[380019723,1755479444629,-303.37247,0.000123,2]
[380019724,1755479444638,-151.0,0.000123,2]
[380019725,1755479444648,-151.0,0.000123,2]
[380019726,1755479444657,-151.0,0.000123,2]
[380019727,1755479444666,-151.0,0.000123,2]
[380019728,1755479444676,-885.494999,0.000123,2]
[380019729,1755479444685,-885.494999,0.000123,2]
[380019730,1755479444697,-151.0,0.000123,2]
[380019731,1755479444707,-151.0,0.000123,2]
[380019732,1755479444716,-164.066058,0.000123,2]
[380019733,1755479444726,-164.066058,0.000123,2]
[380019734,1755479444735,-151.0,0.000123,2]
[380019735,1755479444744,-151.0,0.000123,2]
[380019736,1755479444753,-213.352153,0.000123,2]
[380019737,1755479444763,-213.352153,0.000123,2]
[380019738,1755479444776,-548.682809,0.000123,2]
[380019739,1755479444786,-151.0,0.000123,2]
[380019740,1755479444796,-151.0,0.000123,2]
[380019741,1755479444805,-548.682809,0.000123,2]
[380019742,1755479444815,-151.0,0.000123,2]
[380019743,1755479444824,-151.0,0.000123,2]
[380019744,1755479444834,-151.0,0.000123,2]
[380019745,1755479444843,-151.0,0.000123,2]
[380019746,1755479444855,-151.0,0.000123,2]
[380019747,1755479444865,-286.765283,0.000123,2]
[380019748,1755479444874,-151.0,0.000123,2]
[380019749,1755479444884,-286.765283,0.000123,2]
[380019750,1755479444893,-151.0,0.000123,2]
[380019751,1755479444902,-151.0,0.000123,2]
[380019752,1755479444911,-151.0,0.000123,2]
[380019753,1755479444921,-151.0,0.000123,2]
[380019754,1755479444930,-151.0,0.000123,2]
[380019755,1755479444940,-151.0,0.000123,2]
[380019756,1755479444949,-218.195133,0.000123,2]
[380019757,1755479444959,-151.0,0.000123,2]
[380019758,1755479444968,-151.0,0.000123,2]
[380019759,1755479444978,-151.0,0.000123,2]
[380019760,1755479444987,-395.250391,0.000123,2]
[380019761,1755479444997,-151.0,0.000123,2]
[380019762,1755479445008,-151.0,0.000123,2]
[380019763,1755479445018,-395.250391,0.000123,2]
[380019764,1755479445028,-350.173881,0.000123,2]
[380019765,1755479445038,-757.30883,0.000123,2]
[380019766,1755479445048,-151.82547,0.000123,2]
[380019767,1755479445058,-583.742671,0.000123,2]
[380019768,1755479445067,-350.173881,0.000123,2]
[380019769,1755479445076,-151.0,0.000123,2]
[380019770,1755479445086,-757.30883,0.000123,2]
[380019771,1755479445096,-583.742671,0.000123,2]
[380019772,1755479445105,-151.82547,0.000123,2]
[380019773,1755479445114,-151.0,0.000123,2]
[380019774,1755479445124,-151.0,0.000123,2]
[380019775,1755479445134,-265.158665,0.000123,2]
[380019776,1755479445144,-151.0,0.000123,2]
[380019777,1755479445154,-265.158665,0.000123,2]
[380019778,1755479445163,-151.0,0.000123,2]
[380019779,1755479445173,-206.881719,0.000123,2]
[380019780,1755479445183,-151.0,0.000123,2]
[380019781,1755479445193,-151.0,0.000123,2]
[380019782,1755479445203,-206.881719,0.000123,2]
[380019783,1755479445213,-177.924133,0.000123,2]
[380019784,1755479445230,-852.516069,0.000123,2]
[380019785,1755479445241,-852.516069,0.000123,2]
[380019786,1755479445251,-442.240825,0.000123,2]
[380019787,1755479445269,-151.0,0.000123,2]
[380019788,1755479445279,-442.240825,0.000123,2]
[380019789,1755479445290,-514.593126,0.000123,2]
[380019790,1755479445300,-152.655332,0.000123,2]
[380019791,1755479445310,-173.875101,0.000123,2]
[380019792,1755479445320,-514.593126,0.000123,2]
[380019793,1755479445330,-151.0,0.000123,2]
[380019794,1755479445340,-151.0,0.000123,2]
[380019795,1755479445350,-173.875101,0.000123,2]
[380019796,1755479445359,-157.461823,0.000123,2]
[380019797,1755479445369,-151.0,0.000123,2]
[380019798,1755479445378,-151.571339,0.000123,2]
[380019799,1755479445387,-151.0,0.000123,2]
[380019800,1755479445397,-157.461823,0.000123,2]
[380019801,1755479445406,-151.0,0.000123,2]
[380019802,1755479445416,-151.0,0.000123,2]
[380019803,1755479445426,-151.0,0.000123,2]
[380019804,1755479445435,-151.0,0.000123,2]
[380019805,1755479445445,-151.0,0.000123,2]
[380019806,1755479445454,-151.0,0.000123,2]
[380019807,1755479445464,-151.0,0.000123,2]
[380019808,1755479445473,-151.0,0.000123,2]
[380019809,1755479445482,-151.0,0.000123,2]
[380019810,1755479445492,-151.0,0.000123,2]
[380019811,1755479445501,-151.0,0.000123,2]
[380019812,1755479445511,-810.391604,0.000123,2]
[380019813,1755479445520,-810.391604,0.000123,2]
[380019814,1755479445530,-250.664092,0.000123,2]
[380019815,1755479445540,-250.664092,0.000123,2]
[380019817,1755479445549,-151.0,0.000123,2]
[380019818,1755479445559,-151.0,0.000123,2]
[380019819,1755479445568,-151.0,0.000123,2]
[380019820,1755479445578,-2633.505655,0.000123,2]
[380019821,1755479445587,-152.916351,0.000123,2]
[380019822,1755479445596,-2633.505655,0.000123,2]
[380019823,1755479445606,-151.0,0.000123,2]
[380019824,1755479445615,-151.0,0.000123,2]
[380019825,1755479445624,-151.0,0.000123,2]
[380019826,1755479445633,-151.0,0.000123,2]
[380019827,1755479445643,-151.0,0.000123,2]
[380019828,1755479445652,-679.066885,0.000123,2]
[380019829,1755479445661,-151.0,0.000123,2]
[380019830,1755479445671,-679.066885,0.000123,2]
[380019831,1755479445680,-151.0,0.000123,2]
[380019832,1755479445690,-210.665336,0.000123,2]
[380019833,1755479445699,-210.665336,0.000123,2]
[380019834,1755479445708,-2316.622121,0.000123,2]
[380019835,1755479445718,-151.0,0.000123,2]
[380019836,1755479445728,-218.892138,0.000123,2]
[380019837,1755479445737,-2316.622121,0.000123,2]
[380019838,1755479445747,-151.0,0.000123,2]
[380019839,1755479445762,-218.892138,0.000123,2]
[380019840,1755479445773,-873.930281,0.000123,2]
[380019841,1755479445782,-151.0,0.000123,2]
[380019842,1755479445791,-873.930281,0.000123,2]
[380019843,1755479445801,-151.0,0.000123,2]
[380019844,1755479445811,-151.448572,0.000123,2]
[380019845,1755479445820,-151.0,0.000123,2]
[380019846,1755479445828,-262.886038,0.000123,2]
[380019847,1755479445837,-151.0,0.000123,2]
[380019848,1755479445848,-262.886038,0.000123,2]
[380019849,1755479445858,-1205.5532,0.000123,2]
[380019850,1755479445867,-513.512353,0.000123,2]
[380019851,1755479445876,-151.0,0.000123,2]
[380019852,1755479445886,-1205.5532,0.000123,2]
[380019853,1755479445895,-513.512353,0.000123,2]
[380019854,1755479445905,-151.0,0.000123,2]
[380019855,1755479445915,-808.477846,0.000123,2]
[380019856,1755479445924,-151.0,0.000123,2]
[380019857,1755479445934,-808.477846,0.000123,2]
[380019858,1755479445943,-185.529936,0.000123,2]
[380019859,1755479445952,-151.0,0.000123,2]
[380019860,1755479445962,-235.638046,0.000123,2]
[380019861,1755479445976,-185.529936,0.000123,2]
[380019862,1755479445986,-151.0,0.000123,2]
[380019863,1755479445995,-235.638046,0.000123,2]
[380019864,1755479446004,-151.0,0.000123,2]
[380019865,1755479446014,-151.0,0.000123,2]
[380019866,1755479446023,-151.0,0.000123,2]
[380019867,1755479446033,-456.592985,0.000123,2]
[380019868,1755479446042,-151.0,0.000123,2]
[380019869,1755479446053,-456.592985,0.000123,2]
[380019871,1755479446062,-727.771003,0.000123,2]
[380019872,1755479446071,-494.612646,0.000123,2]
[380019873,1755479446080,-727.771003,0.000123,2]
[380019874,1755479446090,-151.0,0.000123,2]
[380019875,1755479446099,-151.0,0.000123,2]
[380019876,1755479446108,-151.0,0.000123,2]
[380019877,1755479446117,-494.612646,0.000123,2]
[380019878,1755479446126,-151.0,0.000123,2]
[380019879,1755479446136,-151.0,0.000123,2]
[380019880,1755479446253,-151.0,0.000123,2]
[380019881,1755479446263,-151.0,0.000123,2]
[380019882,1755479446272,-972.053186,0.000123,2]
[380019883,1755479446282,-378.598942,0.000123,2]
[380019884,1755479446291,-151.0,0.000123,2]
[380019885,1755479446301,-972.053186,0.000123,2]
[380019886,1755479446310,-378.598942,0.000123,2]
[380019887,1755479446319,-151.0,0.000123,2]
[380019888,1755479446328,-2679.852368,0.000123,2]
[380019889,1755479446337,-2679.852368,0.000123,2]
[380019890,1755479446347,-360.736646,0.000123,2]
[380019891,1755479446356,-151.0,0.000123,2]
[380019892,1755479446365,-360.736646,0.000123,2]
[380019893,1755479446374,-151.0,0.000123,2]
[380019894,1755479446383,-151.0,0.000123,2]
[380019895,1755479446393,-151.0,0.000123,2]
[380019896,1755479446403,-1855.445732,0.000123,2]
[380019897,1755479446412,-206.689457,0.000123,2]
[380019898,1755479446421,-1855.445732,0.000123,2]
[380019899,1755479446430,-1135.138139,0.000123,2]
[380019900,1755479446440,-206.689457,0.000123,2]
[380019901,1755479446449,-873.743857,0.000123,2]
[380019902,1755479446459,-311.54098,0.000123,2]
[380019903,1755479446469,-2615.84619,0.000123,2]
[380019904,1755479446478,-1135.138139,0.000123,2]
[380019905,1755479446488,-311.54098,0.000123,2]
[380019906,1755479446497,-873.743857,0.000123,2]
[380019907,1755479446507,-151.0,0.000123,2]
[380019908,1755479446516,-2615.84619,0.000123,2]
[380019909,1755479446525,-466.112705,0.000123,2]
[380019910,1755479446534,-151.0,0.000123,2]
[380019911,1755479446544,-151.0,0.000123,2]
[380019912,1755479446553,-466.112705,0.000123,2]
[380019913,1755479446562,-151.0,0.000123,2]
[380019914,1755479446571,-151.177169,0.000123,2]
[380019915,1755479446580,-1393.189068,0.000123,2]
[380019916,1755479446590,-150.0,0.00012309,2]
[380019917,1755479446599,-828.09966286,0.00012312,2]
[380019918,1755479446608,-1998.82495063,0.00012329,2]
[380019919,1755479446617,-12403.23930771,0.00012334,2]
[380019920,1755479446627,-150.0,0.00012355,2]
[380019921,1755479446637,-150.0,0.00012357,2]
[380019922,1755479446647,-758.0,0.00012363,2]
[380019923,1755479446656,-1686.0,0.00012363,2]
[380019924,1755479446666,-445.0,0.00012363,2]
[380019925,1755479446675,-500.0,0.00012363,2]
[380019926,1755479446685,-1000.0,0.00012363,2]
[380019927,1755479446695,-575.0,0.00012363,2]
[380019928,1755479446704,-500.0,0.00012363,2]
[380019929,1755479446713,-500.0,0.00012363,2]
[380019930,1755479446725,-500.0,0.00012363,2]
[380019931,1755479446734,-500.0,0.00012369,2]
[380019932,1755479446744,-2000.0,0.00012369,2]
[380019933,1755479446753,-500.0,0.00012369,2]
[380019934,1755479446762,-200.0,0.00012369,2]
[380019935,1755479446775,-500.0,0.0001237,2]
[380019936,1755479446785,-500.0,0.0001237,2]
[380019937,1755479446794,-500.0,0.0001237,2]
[380019938,1755479446803,-500.0,0.0001237,2]
[380019939,1755479446814,-616.49691832,0.0001237,2]
[380019940,1755479446824,-12862.1591621,0.00012389,2]
[380019941,1755479446833,-150.0,0.00012411,2]
[380019942,1755479446843,-150.0,0.00012416,2]
[380019943,1755479446853,-711.93,0.00012434,2]
[380019944,1755479446862,-150.0,0.00012444,2]
[380019945,1755479446872,-13338.05905109,0.00012444,2]
[380019946,1755479446881,-155.0,0.00012475,2]
[380019947,1755479446890,-150.0,0.00012479,2]
[380019948,1755479446899,-150.0,0.00012494,2]
[380019949,1755479446909,-1000.0,0.000125,2]
[380019950,1755479446918,-150.0,0.00012503,2]
[380019951,1755479446927,-150.0,0.00012511,2]
[380019952,1755479446936,-290.96,0.00012518,2]
[380019953,1755479446945,-269.96,0.00012518,2]
[380019954,1755479446955,-150.0,0.00012525,2]
[380019955,1755479446964,-150.0,0.00012534,2]
[380019956,1755479446974,-150.0,0.00012535,5]
[380019957,1755479446983,-259.72620775,0.00012535,5]
[380019958,1755479446993,-429.92503814,0.00012538,2]
[380019959,1755479447002,-1000.0,0.00012554,2]
[380019960,1755479447011,-150.0,0.0001256,2]
[380019961,1755479447020,-587.0,0.0001256,2]
[380019962,1755479447029,-2351.0,0.00012569,2]
[380019963,1755479447039,-150.0,0.00012591,5]
[380019964,1755479447049,-150.0,0.00012596,2]
[380019965,1755479447058,-1000.0,0.000126,2]
[380019966,1755479447068,-290.96,0.00012606,2]
[380019967,1755479447077,-502.41211929,0.00012616,2]
[380019968,1755479447086,-1861.81308335,0.00012616,2]
[380019969,1755479447095,-2000.0,0.00012616,2]